[Event "Titled Tuesday Blitz August 23 Early 2022"]
[White "Harshavardhan G B"]
[Black "Lenderman, Aleksandr"]
[WhiteFideId "25059009"]
[BlackFideId "2021285"]
[WhiteElo "1890"]
[BlackElo "2607"]
[Result "0-1"]
[Round "04"]
[TimeControl "180+1"]
[Date "2022.08.23"]
[WhiteClock "0:00:18"]
[BlackClock "0:01:06"]

1. e4 {[%clk 0:02:59]}  e6 {[%clk 0:03:00]} 2. d4 {[%clk 0:02:57]}  d5 {[%clk 0:03:01]} 3. Nc3 {[%clk 0:02:58]}  dxe4 {[%clk 0:03:01]} 4. Nxe4 {[%clk 0:02:57]}  Nd7 {[%clk 0:03:02]} 5. Bd3 {[%clk 0:02:56]}  Ngf6 {[%clk 0:03:03]} 6. Nf3 {[%clk 0:02:57]}  Nxe4 {[%clk 0:03:02]} 7. Bxe4 {[%clk 0:02:56]}  Nf6 {[%clk 0:03:03]} 8. Bd3 {[%clk 0:02:57]}  c5 {[%clk 0:03:03]} 9. c3 {[%clk 0:02:56]}  cxd4 {[%clk 0:03:03]} 10. Nxd4 {[%clk 0:02:57]}  Bc5 {[%clk 0:03:03]} 11. Nb3 {[%clk 0:02:55]}  Bb6 {[%clk 0:03:02]} 12. O-O {[%clk 0:02:55]}  O-O {[%clk 0:03:02]} 13. Bg5 {[%clk 0:02:54]}  h6 {[%clk 0:02:57]} 14. Bh4 {[%clk 0:02:54]}  Bd7 {[%clk 0:02:56]} 15. Qe2 {[%clk 0:02:30]}  Bc6 {[%clk 0:02:53]} 16. Rad1 {[%clk 0:02:29]}  Qe7 {[%clk 0:02:35]} 17. Bc2 {[%clk 0:02:24]}  Rfd8 {[%clk 0:02:35]} 18. Qe5 {[%clk 0:02:04]}  Rxd1 {[%clk 0:02:33]} 19. Rxd1 {[%clk 0:02:03]}  Rd8 {[%clk 0:02:33]} 20. Nd4 {[%clk 0:01:58]}  Rd5 {[%clk 0:02:09]} 21. Nxc6 {[%clk 0:01:14]}  bxc6 {[%clk 0:02:06]} 22. Qb8+ {[%clk 0:01:14]}  Qf8 {[%clk 0:02:04]} 23. Qxf8+ {[%clk 0:01:14]}  Kxf8 {[%clk 0:02:04]} 24. Kf1 {[%clk 0:01:09]}  Rxd1+ {[%clk 0:01:57]} 25. Bxd1 {[%clk 0:01:10]}  g5 {[%clk 0:01:57]} 26. Bg3 {[%clk 0:01:09]}  Ne4 {[%clk 0:01:58]} 27. Bf3 {[%clk 0:00:36]}  Nd2+ {[%clk 0:01:54]} 28. Ke2 {[%clk 0:00:36]}  Nxf3 {[%clk 0:01:55]} 29. Kxf3 {[%clk 0:00:36]}  Ke7 {[%clk 0:01:47]} 30. b4 {[%clk 0:00:34]}  h5 {[%clk 0:01:36]} 31. h4 {[%clk 0:00:33]}  g4+ {[%clk 0:01:35]} 32. Ke4 {[%clk 0:00:29]}  f5+ {[%clk 0:01:35]} 33. Kd3 {[%clk 0:00:29]}  Kf6 {[%clk 0:01:34]} 34. f4 {[%clk 0:00:22]}  gxf3 {[%clk 0:01:26]} 35. gxf3 {[%clk 0:00:23]}  e5 {[%clk 0:01:26]} 36. c4 {[%clk 0:00:21]}  Bg1 {[%clk 0:01:23]} 37. a4 {[%clk 0:00:20]}  a6 {[%clk 0:01:18]} 38. c5 {[%clk 0:00:18]}  Ke6 {[%clk 0:01:12]} 39. Kc4 {[%clk 0:00:18]}  f4 {[%clk 0:01:07]} 40. Be1 {[%clk 0:00:18]}  e4 {[%clk 0:01:08]} 41. fxe4 {[%clk 0:00:16]}  f3 {[%clk 0:01:09]} 42. Kd3 {[%clk 0:00:14]}  f2 {[%clk 0:01:09]} 43. Bxf2 {[%clk 0:00:14]}  Bxf2 {[%clk 0:01:10]} 44. Kc3 {[%clk 0:00:15]}  Bxh4 {[%clk 0:01:10]} 45. Kc4 {[%clk 0:00:16]}  Bf2 {[%clk 0:01:09]} 46. b5 {[%clk 0:00:17]}  axb5+ {[%clk 0:01:09]} 47. axb5 {[%clk 0:00:18]}  cxb5+ {[%clk 0:01:10]} 48. Kxb5 {[%clk 0:00:19]}  Bxc5 {[%clk 0:01:05]} 49. Kxc5 {[%clk 0:00:18]}  h4 {[%clk 0:01:06]} 0-1


[Site "https://www.chess.com"]

[Event "Titled Tuesday Blitz August 23 Early 2022"]
[White "Jakubowski, Krzysztof"]
[Black "Drygalov, Sergey"]
[WhiteFideId "1112848"]
[BlackFideId "24171743"]
[WhiteElo "2306"]
[BlackElo "2523"]
[Result "0-1"]
[Round "04"]
[TimeControl "180+1"]
[Date "2022.08.23"]
[WhiteClock "0:00:50"]
[BlackClock "0:01:44"]

1. e4 {[%clk 0:03:00]}  c5 {[%clk 0:03:00]} 2. Nf3 {[%clk 0:03:00]}  d6 {[%clk 0:03:00]} 3. d4 {[%clk 0:03:00]}  cxd4 {[%clk 0:03:01]} 4. Nxd4 {[%clk 0:02:59]}  Nf6 {[%clk 0:03:02]} 5. Nc3 {[%clk 0:02:59]}  a6 {[%clk 0:03:02]} 6. h3 {[%clk 0:02:57]}  e5 {[%clk 0:03:02]} 7. Nde2 {[%clk 0:02:50]}  h5 {[%clk 0:03:02]} 8. Bg5 {[%clk 0:02:49]}  Be6 {[%clk 0:03:00]} 9. Bxf6 {[%clk 0:02:48]}  Qxf6 {[%clk 0:03:00]} 10. Nd5 {[%clk 0:02:47]}  Qd8 {[%clk 0:03:00]} 11. a4 {[%clk 0:02:44]}  g6 {[%clk 0:02:58]} 12. Nec3 {[%clk 0:02:43]}  Nc6 {[%clk 0:02:58]} 13. Bc4 {[%clk 0:02:42]}  Bh6 {[%clk 0:02:57]} 14. O-O {[%clk 0:02:41]}  O-O {[%clk 0:02:57]} 15. Ra3 {[%clk 0:02:27]}  Rc8 {[%clk 0:02:56]} 16. Ba2 {[%clk 0:02:25]}  Nd4 {[%clk 0:02:56]} 17. Qd3 {[%clk 0:02:19]}  Qh4 {[%clk 0:02:35]} 18. Nb6 {[%clk 0:02:08]}  Rc6 {[%clk 0:02:29]} 19. Ncd5 {[%clk 0:02:02]}  Rxc2 {[%clk 0:02:23]} 20. Nc4 {[%clk 0:01:30]}  Rd8 {[%clk 0:02:04]} 21. Nc7 {[%clk 0:00:51]}  Bxc4 {[%clk 0:01:44]} 22. Bxc4 {[%clk 0:00:50]}  Rc8 {[%clk 0:01:44]} 0-1


[Site "https://www.chess.com"]

[Event "Titled Tuesday Blitz August 23 Early 2022"]
[White "Mamedyarov, Shakhriyar"]
[Black "Blanco Ronquillo, Humberto L."]
[WhiteFideId "13401319"]
[BlackFideId "3504239"]
[WhiteElo "2710"]
[BlackElo "2425"]
[Result "0-1"]
[Round "04"]
[TimeControl "180+1"]
[Date "2022.08.23"]
[WhiteClock "0:00:16"]
[BlackClock "0:00:05"]

1. c4 {[%clk 0:03:00]}  c6 {[%clk 0:02:59]} 2. Nf3 {[%clk 0:02:58]}  d5 {[%clk 0:02:59]} 3. b3 {[%clk 0:02:57]}  Bg4 {[%clk 0:02:56]} 4. Bb2 {[%clk 0:02:56]}  e6 {[%clk 0:02:55]} 5. e3 {[%clk 0:02:55]}  Nd7 {[%clk 0:02:55]} 6. Qc2 {[%clk 0:02:53]}  Bf5 {[%clk 0:02:35]} 7. d3 {[%clk 0:02:53]}  Ngf6 {[%clk 0:02:34]} 8. Nbd2 {[%clk 0:02:52]}  h6 {[%clk 0:02:35]} 9. Be2 {[%clk 0:02:49]}  Bd6 {[%clk 0:02:25]} 10. a3 {[%clk 0:02:49]}  a5 {[%clk 0:02:24]} 11. h3 {[%clk 0:02:41]}  Bh7 {[%clk 0:02:22]} 12. g4 {[%clk 0:02:36]}  Qe7 {[%clk 0:02:22]} 13. Rg1 {[%clk 0:02:36]}  Nc5 {[%clk 0:02:09]} 14. h4 {[%clk 0:02:30]}  e5 {[%clk 0:01:56]} 15. g5 {[%clk 0:02:23]}  hxg5 {[%clk 0:01:56]} 16. hxg5 {[%clk 0:02:24]}  Nfd7 {[%clk 0:01:56]} 17. e4 {[%clk 0:01:59]}  dxe4 {[%clk 0:01:46]} 18. dxe4 {[%clk 0:01:58]}  Bg6 {[%clk 0:01:45]} 19. Bc3 {[%clk 0:01:51]}  Ne6 {[%clk 0:01:44]} 20. Qb2 {[%clk 0:01:45]}  Nf4 {[%clk 0:01:35]} 21. b4 {[%clk 0:01:43]}  Rh3 {[%clk 0:01:14]} 22. c5 {[%clk 0:01:39]}  Bc7 {[%clk 0:01:13]} 23. Bf1 {[%clk 0:01:39]}  Bh5 {[%clk 0:01:09]} 24. Rg3 {[%clk 0:01:26]}  Rh1 {[%clk 0:00:59]} 25. Qc2 {[%clk 0:01:26]}  axb4 {[%clk 0:00:53]} 26. axb4 {[%clk 0:01:27]}  Rxa1+ {[%clk 0:00:53]} 27. Bxa1 {[%clk 0:01:27]}  Qe6 {[%clk 0:00:47]} 28. Rg1 {[%clk 0:01:06]}  Rxg1 {[%clk 0:00:29]} 29. Nxg1 {[%clk 0:01:07]}  Bd8 {[%clk 0:00:27]} 30. Ngf3 {[%clk 0:01:04]}  Qg4 {[%clk 0:00:27]} 31. b5 {[%clk 0:00:38]}  Bxg5 {[%clk 0:00:23]} 32. bxc6 {[%clk 0:00:37]}  bxc6 {[%clk 0:00:24]} 33. Qa4 {[%clk 0:00:35]}  Ng2+ {[%clk 0:00:11]} 34. Bxg2 {[%clk 0:00:21]}  Qxg2 {[%clk 0:00:11]} 35. Nxg5 {[%clk 0:00:21]}  Qg1+ {[%clk 0:00:11]} 36. Nf1 {[%clk 0:00:20]}  Qxg5 {[%clk 0:00:12]} 37. Bb2 {[%clk 0:00:19]}  Qg4 {[%clk 0:00:10]} 38. Ng3 {[%clk 0:00:19]}  Qf3 {[%clk 0:00:06]} 39. Qxc6 {[%clk 0:00:16]}  Qd1# {[%clk 0:00:05]} 0-1


[Site "https://www.chess.com"]

[Event "Titled Tuesday Blitz August 23 Early 2022"]
[White "Martin Carmona, Gaston Manuel"]
[Black "Tristan, Leonardo"]
[WhiteFideId "22284567"]
[BlackFideId "113816"]
[WhiteElo "2162"]
[BlackElo "2404"]
[Result "1/2-1/2"]
[Round "04"]
[TimeControl "180+1"]
[Date "2022.08.23"]
[WhiteClock "0:01:29"]
[BlackClock "0:00:17"]

1. d4 {[%clk 0:03:00]}  d5 {[%clk 0:03:00]} 2. c4 {[%clk 0:03:01]}  e6 {[%clk 0:03:00]} 3. Nf3 {[%clk 0:03:01]}  Nf6 {[%clk 0:03:00]} 4. Nbd2 {[%clk 0:02:59]}  Be7 {[%clk 0:02:55]} 5. e3 {[%clk 0:02:59]}  O-O {[%clk 0:02:55]} 6. Bd3 {[%clk 0:03:00]}  b6 {[%clk 0:02:53]} 7. b3 {[%clk 0:03:00]}  Bb7 {[%clk 0:02:54]} 8. Bb2 {[%clk 0:03:01]}  Nbd7 {[%clk 0:02:54]} 9. O-O {[%clk 0:03:01]}  dxc4 {[%clk 0:02:48]} 10. Nxc4 {[%clk 0:03:01]}  c5 {[%clk 0:02:48]} 11. Rc1 {[%clk 0:02:58]}  Rc8 {[%clk 0:02:47]} 12. Nfe5 {[%clk 0:02:54]}  Rc7 {[%clk 0:02:47]} 13. Qe2 {[%clk 0:02:51]}  Qa8 {[%clk 0:02:47]} 14. f3 {[%clk 0:02:50]}  Rd8 {[%clk 0:02:46]} 15. Rfd1 {[%clk 0:02:49]}  Nxe5 {[%clk 0:02:44]} 16. dxe5 {[%clk 0:02:43]}  Nd5 {[%clk 0:02:43]} 17. f4 {[%clk 0:02:44]}  Rcd7 {[%clk 0:02:28]} 18. Qh5 {[%clk 0:02:30]}  g6 {[%clk 0:02:28]} 19. Qe2 {[%clk 0:02:31]}  Nb4 {[%clk 0:02:26]} 20. Bc2 {[%clk 0:02:09]}  Rxd1+ {[%clk 0:01:33]} 21. Rxd1 {[%clk 0:02:08]}  Rxd1+ {[%clk 0:01:33]} 22. Bxd1 {[%clk 0:02:08]}  Nxa2 {[%clk 0:01:33]} 23. Nd6 {[%clk 0:02:03]}  Nb4 {[%clk 0:01:23]} 24. Nxb7 {[%clk 0:01:58]}  Qxb7 {[%clk 0:01:23]} 25. Bc3 {[%clk 0:01:47]}  Qd5 {[%clk 0:01:17]} 26. Bxb4 {[%clk 0:01:35]}  cxb4 {[%clk 0:01:17]} 27. Bc2 {[%clk 0:01:36]}  Bc5 {[%clk 0:01:16]} 28. Kf2 {[%clk 0:01:37]}  Kf8 {[%clk 0:00:29]} 29. Qd3 {[%clk 0:01:36]}  Qxd3 {[%clk 0:00:30]} 30. Bxd3 {[%clk 0:01:37]}  Ke7 {[%clk 0:00:30]} 31. Bb5 {[%clk 0:01:36]}  f6 {[%clk 0:00:29]} 32. exf6+ {[%clk 0:01:35]}  Kxf6 {[%clk 0:00:30]} 33. Kf3 {[%clk 0:01:35]}  Ke7 {[%clk 0:00:24]} 34. Ke4 {[%clk 0:01:35]}  Kd6 {[%clk 0:00:24]} 35. g4 {[%clk 0:01:33]}  h6 {[%clk 0:00:18]} 36. h4 {[%clk 0:01:33]}  Ke7 {[%clk 0:00:16]} 37. g5 {[%clk 0:01:33]}  hxg5 {[%clk 0:00:16]} 38. hxg5 {[%clk 0:01:31]}  Kf7 {[%clk 0:00:16]} 39. Bc4 {[%clk 0:01:28]}  Ke7 {[%clk 0:00:16]} 40. Bb5 {[%clk 0:01:28]}  Kf7 {[%clk 0:00:17]} 41. Bc4 {[%clk 0:01:28]}  Ke7 {[%clk 0:00:17]} 42. Bb5 {[%clk 0:01:29]} 1/2-1/2


[Site "https://www.chess.com"]

[Event "Titled Tuesday Blitz August 23 Early 2022"]
[White "Nakamura, Hikaru"]
[Black "Gholami Orimi, Mahdi"]
[WhiteFideId "2016192"]
[BlackFideId "12558486"]
[WhiteElo "2850"]
[BlackElo "2354"]
[Result "1-0"]
[Round "04"]
[TimeControl "180+1"]
[Date "2022.08.23"]
[WhiteClock "0:01:15"]
[BlackClock "0:00:01"]

1. g3 {[%clk 0:03:00]}  d5 {[%clk 0:02:18]} 2. Bg2 {[%clk 0:03:00]}  Nf6 {[%clk 0:02:00]} 3. d3 {[%clk 0:03:00]}  g6 {[%clk 0:01:59]} 4. Bd2 {[%clk 0:03:00]}  Bg7 {[%clk 0:01:59]} 5. Qc1 {[%clk 0:03:00]}  O-O {[%clk 0:01:50]} 6. Bh6 {[%clk 0:02:59]}  e5 {[%clk 0:01:50]} 7. Nc3 {[%clk 0:02:54]}  c6 {[%clk 0:01:49]} 8. h4 {[%clk 0:02:54]}  Bxh6 {[%clk 0:01:49]} 9. Qxh6 {[%clk 0:02:54]}  Ng4 {[%clk 0:01:50]} 10. Qd2 {[%clk 0:02:53]}  h5 {[%clk 0:01:37]} 11. f3 {[%clk 0:02:51]}  Nf6 {[%clk 0:01:36]} 12. Qh6 {[%clk 0:02:52]}  Re8 {[%clk 0:01:33]} 13. Nh3 {[%clk 0:02:49]}  Qd6 {[%clk 0:01:32]} 14. Ng5 {[%clk 0:02:45]}  Qf8 {[%clk 0:01:31]} 15. Qxf8+ {[%clk 0:02:44]}  Kxf8 {[%clk 0:01:32]} 16. e4 {[%clk 0:02:45]}  Na6 {[%clk 0:01:31]} 17. O-O {[%clk 0:02:42]}  Kg7 {[%clk 0:01:30]} 18. f4 {[%clk 0:02:34]}  dxe4 {[%clk 0:01:19]} 19. fxe5 {[%clk 0:02:23]}  Rxe5 {[%clk 0:01:15]} 20. Ncxe4 {[%clk 0:02:23]}  Nxe4 {[%clk 0:01:03]} 21. Nxe4 {[%clk 0:02:23]}  Bf5 {[%clk 0:00:57]} 22. Nd6 {[%clk 0:02:23]}  Be6 {[%clk 0:00:49]} 23. Rae1 {[%clk 0:02:13]}  Rxe1 {[%clk 0:00:46]} 24. Rxe1 {[%clk 0:02:14]}  Rb8 {[%clk 0:00:46]} 25. a3 {[%clk 0:02:08]}  Nc7 {[%clk 0:00:46]} 26. Re4 {[%clk 0:02:03]}  a6 {[%clk 0:00:32]} 27. a4 {[%clk 0:01:54]}  b5 {[%clk 0:00:26]} 28. a5 {[%clk 0:01:52]}  Kf6 {[%clk 0:00:20]} 29. Re2 {[%clk 0:01:47]}  Nd5 {[%clk 0:00:11]} 30. Ne4+ {[%clk 0:01:44]}  Kg7 {[%clk 0:00:12]} 31. Nc5 {[%clk 0:01:44]}  Bg4 {[%clk 0:00:13]} 32. Re1 {[%clk 0:01:44]}  Nb4 {[%clk 0:00:12]} 33. c3 {[%clk 0:01:42]}  Nd5 {[%clk 0:00:12]} 34. Bxd5 {[%clk 0:01:31]}  cxd5 {[%clk 0:00:13]} 35. d4 {[%clk 0:01:32]}  b4 {[%clk 0:00:12]} 36. Nxa6 {[%clk 0:01:32]}  Ra8 {[%clk 0:00:10]} 37. Nxb4 {[%clk 0:01:32]}  Rxa5 {[%clk 0:00:11]} 38. Kf2 {[%clk 0:01:32]}  Bf5 {[%clk 0:00:08]} 39. Ke3 {[%clk 0:01:32]}  Be4 {[%clk 0:00:08]} 40. c4 {[%clk 0:01:29]}  f5 {[%clk 0:00:04]} 41. Nxd5 {[%clk 0:01:25]}  Bxd5 {[%clk 0:00:03]} 42. cxd5 {[%clk 0:01:25]}  Rxd5 {[%clk 0:00:03]} 43. b4 {[%clk 0:01:26]}  Kf6 {[%clk 0:00:03]} 44. Kd3 {[%clk 0:01:25]}  Rd8 {[%clk 0:00:03]} 45. b5 {[%clk 0:01:24]}  g5 {[%clk 0:00:03]} 46. hxg5+ {[%clk 0:01:18]}  Kxg5 {[%clk 0:00:04]} 47. Re7 {[%clk 0:01:18]}  f4 {[%clk 0:00:03]} 48. gxf4+ {[%clk 0:01:18]}  Kxf4 {[%clk 0:00:04]} 49. b6 {[%clk 0:01:19]}  h4 {[%clk 0:00:03]} 50. b7 {[%clk 0:01:19]}  h3 {[%clk 0:00:04]} 51. Kc4 {[%clk 0:01:14]}  h2 {[%clk 0:00:03]} 52. Rh7 {[%clk 0:01:14]}  Kg3 {[%clk 0:00:03]} 53. Kc5 {[%clk 0:01:15]}  Rb8 {[%clk 0:00:01]} 54. Kc6 {[%clk 0:01:15]} 1-0


[Site "https://www.chess.com"]

[Event "Titled Tuesday Blitz August 23 Early 2022"]
[White "Odegov, Artem"]
[Black "Beerdsen, Thomas"]
[WhiteFideId "34183644"]
[BlackFideId "1030108"]
[WhiteElo "2286"]
[BlackElo "2567"]
[Result "0-1"]
[Round "04"]
[TimeControl "180+1"]
[Date "2022.08.23"]
[WhiteClock "0:00:01"]
[BlackClock "0:00:44"]

1. d4 {[%clk 0:03:00]}  Nf6 {[%clk 0:02:43]} 2. c4 {[%clk 0:03:00]}  e6 {[%clk 0:02:44]} 3. Nf3 {[%clk 0:03:00]}  c5 {[%clk 0:02:44]} 4. d5 {[%clk 0:02:59]}  b5 {[%clk 0:02:44]} 5. Bg5 {[%clk 0:02:59]}  exd5 {[%clk 0:02:43]} 6. cxd5 {[%clk 0:02:57]}  h6 {[%clk 0:02:44]} 7. Bxf6 {[%clk 0:02:42]}  Qxf6 {[%clk 0:02:44]} 8. Nc3 {[%clk 0:02:38]}  c4 {[%clk 0:02:33]} 9. e4 {[%clk 0:02:32]}  Bb4 {[%clk 0:02:29]} 10. e5 {[%clk 0:02:32]}  Qg6 {[%clk 0:02:28]} 11. Be2 {[%clk 0:02:26]}  O-O {[%clk 0:02:18]} 12. O-O {[%clk 0:02:24]}  a6 {[%clk 0:01:57]} 13. a4 {[%clk 0:02:17]}  Bxc3 {[%clk 0:01:55]} 14. bxc3 {[%clk 0:02:15]}  Bb7 {[%clk 0:01:56]} 15. Qd4 {[%clk 0:02:06]}  d6 {[%clk 0:01:28]} 16. axb5 {[%clk 0:00:40]}  axb5 {[%clk 0:01:29]} 17. Qb6 {[%clk 0:00:24]}  Bxd5 {[%clk 0:01:26]} 18. Rad1 {[%clk 0:00:21]}  Be6 {[%clk 0:01:04]} 19. Rxd6 {[%clk 0:00:17]}  Ra2 {[%clk 0:01:01]} 20. Nd4 {[%clk 0:00:13]}  Nd7 {[%clk 0:01:00]} 21. Qxb5 {[%clk 0:00:12]}  Rb8 {[%clk 0:00:57]} 22. Nc6 {[%clk 0:00:07]}  Rxb5 {[%clk 0:00:56]} 23. Ne7+ {[%clk 0:00:07]}  Kh7 {[%clk 0:00:57]} 24. Nxg6 {[%clk 0:00:08]}  Rxe2 {[%clk 0:00:53]} 25. Nf4 {[%clk 0:00:04]}  Rexe5 {[%clk 0:00:53]} 26. Nxe6 {[%clk 0:00:05]}  Nf6 {[%clk 0:00:44]} 27. Nd4 {[%clk 0:00:02]}  Rb2 {[%clk 0:00:45]} 28. Rc6 {[%clk 0:00:02]}  Ne4 {[%clk 0:00:43]} 29. Rxc4 {[%clk 0:00:03]}  Nd2 {[%clk 0:00:44]} 30. Rc8 {[%clk 0:00:02]}  Nxf1 {[%clk 0:00:45]} 31. Nf3 {[%clk 0:00:01]}  Re7 {[%clk 0:00:43]} 32. Kxf1 {[%clk 0:00:01]}  Rb1+ {[%clk 0:00:44]} 0-1


[Site "https://www.chess.com"]

[Event "Titled Tuesday Blitz August 23 Early 2022"]
[White "Pinheiro, Iung Alicio de O."]
[Black "Pakleza, Zbigniew"]
[WhiteFideId "2104350"]
[BlackFideId "1119290"]
[WhiteElo "2283"]
[BlackElo "2411"]
[Result "0-1"]
[Round "04"]
[TimeControl "180+1"]
[Date "2022.08.23"]
[WhiteClock "0:00:02"]
[BlackClock "0:00:03"]

1. c4 {[%clk 0:03:00]}  c6 {[%clk 0:02:59]} 2. g3 {[%clk 0:02:51]}  d5 {[%clk 0:02:59]} 3. Nf3 {[%clk 0:02:48]}  Nf6 {[%clk 0:02:59]} 4. b3 {[%clk 0:02:43]}  Bf5 {[%clk 0:02:59]} 5. Bb2 {[%clk 0:02:43]}  e6 {[%clk 0:03:00]} 6. Bg2 {[%clk 0:02:43]}  Be7 {[%clk 0:03:00]} 7. O-O {[%clk 0:02:44]}  O-O {[%clk 0:03:01]} 8. d3 {[%clk 0:02:44]}  h6 {[%clk 0:03:01]} 9. Nbd2 {[%clk 0:02:44]}  a5 {[%clk 0:02:59]} 10. a3 {[%clk 0:02:45]}  Na6 {[%clk 0:02:58]} 11. Ra2 {[%clk 0:02:45]}  Rc8 {[%clk 0:02:45]} 12. Qa1 {[%clk 0:02:43]}  b5 {[%clk 0:02:44]} 13. cxb5 {[%clk 0:02:22]}  cxb5 {[%clk 0:02:45]} 14. Nd4 {[%clk 0:02:22]}  Qb6 {[%clk 0:02:34]} 15. Nxf5 {[%clk 0:02:20]}  exf5 {[%clk 0:02:35]} 16. Bd4 {[%clk 0:02:10]}  Qe6 {[%clk 0:02:29]} 17. Nf3 {[%clk 0:02:07]}  b4 {[%clk 0:02:12]} 18. a4 {[%clk 0:02:03]}  Nc5 {[%clk 0:02:02]} 19. Qb1 {[%clk 0:01:56]}  f4 {[%clk 0:01:27]} 20. Rc1 {[%clk 0:01:49]}  fxg3 {[%clk 0:01:24]} 21. hxg3 {[%clk 0:01:48]}  Ncd7 {[%clk 0:01:10]} 22. Rac2 {[%clk 0:01:44]}  Nb8 {[%clk 0:00:52]} 23. Ne5 {[%clk 0:01:28]}  Bd6 {[%clk 0:00:41]} 24. Qb2 {[%clk 0:01:06]}  Rxc2 {[%clk 0:00:36]} 25. Rxc2 {[%clk 0:01:06]}  Rc8 {[%clk 0:00:36]} 26. Nf3 {[%clk 0:01:01]}  Ne8 {[%clk 0:00:28]} 27. e4 {[%clk 0:00:45]}  dxe4 {[%clk 0:00:18]} 28. dxe4 {[%clk 0:00:45]}  Nc6 {[%clk 0:00:18]} 29. Rd2 {[%clk 0:00:23]}  Nxd4 {[%clk 0:00:15]} 30. Nxd4 {[%clk 0:00:21]}  Qf6 {[%clk 0:00:14]} 31. Qb1 {[%clk 0:00:19]}  Be5 {[%clk 0:00:09]} 32. Qd1 {[%clk 0:00:19]}  Nd6 {[%clk 0:00:08]} 33. Nb5 {[%clk 0:00:10]}  Nxb5 {[%clk 0:00:06]} 34. axb5 {[%clk 0:00:11]}  Kh7 {[%clk 0:00:06]} 35. Rd5 {[%clk 0:00:11]}  Bb2 {[%clk 0:00:06]} 36. f4 {[%clk 0:00:10]}  Rc1 {[%clk 0:00:06]} 37. e5 {[%clk 0:00:09]}  Qb6+ {[%clk 0:00:06]} 38. Kh2 {[%clk 0:00:09]}  Rxd1 {[%clk 0:00:06]} 39. Rxd1 {[%clk 0:00:10]}  Qf2 {[%clk 0:00:06]} 40. Kh3 {[%clk 0:00:09]}  g6 {[%clk 0:00:05]} 41. Rd7 {[%clk 0:00:09]}  Kg8 {[%clk 0:00:02]} 42. Bd5 {[%clk 0:00:09]}  Qf1+ {[%clk 0:00:03]} 43. Kh2 {[%clk 0:00:09]}  Qe2+ {[%clk 0:00:03]} 44. Kh3 {[%clk 0:00:09]}  Qf1+ {[%clk 0:00:03]} 45. Kh2 {[%clk 0:00:09]}  Bd4 {[%clk 0:00:03]} 46. Bxf7+ {[%clk 0:00:08]}  Kf8 {[%clk 0:00:03]} 47. Rxd4 {[%clk 0:00:05]}  Kxf7 {[%clk 0:00:04]} 48. Rd7+ {[%clk 0:00:05]}  Ke8 {[%clk 0:00:04]} 49. Rd6 {[%clk 0:00:05]}  a4 {[%clk 0:00:03]} 50. b6 {[%clk 0:00:05]}  Qf2+ {[%clk 0:00:02]} 51. Kh3 {[%clk 0:00:05]}  Qf3 {[%clk 0:00:01]} 52. bxa4 {[%clk 0:00:04]}  b3 {[%clk 0:00:01]} 53. Rd4 {[%clk 0:00:02]}  Qh1+ {[%clk 0:00:02]} 54. Kg4 {[%clk 0:00:02]}  Qh5# {[%clk 0:00:03]} 0-1


[Site "https://www.chess.com"]

[Event "Titled Tuesday Blitz August 23 Early 2022"]
[White "Sarana, Alexey"]
[Black "Boros, Denes"]
[WhiteFideId "24133795"]
[BlackFideId "722340"]
[WhiteElo "2666"]
[BlackElo "2464"]
[Result "0-1"]
[Round "04"]
[TimeControl "180+1"]
[Date "2022.08.23"]
[WhiteClock "0:00:07"]
[BlackClock "0:00:04"]

1. d4 {[%clk 0:02:35]}  e6 {[%clk 0:03:00]} 2. c4 {[%clk 0:02:36]}  Nc6 {[%clk 0:03:00]} 3. Nc3 {[%clk 0:02:34]}  Bb4 {[%clk 0:02:59]} 4. e3 {[%clk 0:02:34]}  e5 {[%clk 0:02:54]} 5. Ne2 {[%clk 0:02:28]}  Nf6 {[%clk 0:02:50]} 6. d5 {[%clk 0:02:27]}  Nb8 {[%clk 0:02:49]} 7. a3 {[%clk 0:02:26]}  Be7 {[%clk 0:02:49]} 8. h3 {[%clk 0:02:12]}  a5 {[%clk 0:02:43]} 9. g4 {[%clk 0:02:12]}  Na6 {[%clk 0:02:43]} 10. Ng3 {[%clk 0:02:08]}  h6 {[%clk 0:02:25]} 11. Bd3 {[%clk 0:02:07]}  Nc5 {[%clk 0:02:25]} 12. Bc2 {[%clk 0:02:07]}  d6 {[%clk 0:02:24]} 13. Rb1 {[%clk 0:02:06]}  Nh7 {[%clk 0:02:10]} 14. b4 {[%clk 0:02:02]}  axb4 {[%clk 0:02:11]} 15. axb4 {[%clk 0:02:02]}  Na6 {[%clk 0:02:07]} 16. Nf5 {[%clk 0:02:02]}  Bxf5 {[%clk 0:02:06]} 17. gxf5 {[%clk 0:02:02]}  Kf8 {[%clk 0:01:50]} 18. Rg1 {[%clk 0:01:54]}  Nf6 {[%clk 0:01:47]} 19. Qf3 {[%clk 0:01:44]}  e4 {[%clk 0:01:39]} 20. Nxe4 {[%clk 0:01:40]}  Nxe4 {[%clk 0:01:39]} 21. Qxe4 {[%clk 0:01:37]}  Bf6 {[%clk 0:01:40]} 22. Bd2 {[%clk 0:01:37]}  Nb8 {[%clk 0:01:33]} 23. f4 {[%clk 0:01:33]}  Ra2 {[%clk 0:01:29]} 24. Bb3 {[%clk 0:01:32]}  Ra3 {[%clk 0:01:28]} 25. Rg2 {[%clk 0:01:23]}  Kg8 {[%clk 0:01:25]} 26. Qc2 {[%clk 0:01:20]}  Kh7 {[%clk 0:01:22]} 27. e4 {[%clk 0:01:20]}  Re8 {[%clk 0:01:22]} 28. Kf1 {[%clk 0:01:21]}  Kh8 {[%clk 0:01:17]} 29. Rg3 {[%clk 0:01:15]}  Nd7 {[%clk 0:01:09]} 30. Kg2 {[%clk 0:01:14]}  Bd4 {[%clk 0:01:06]} 31. Re1 {[%clk 0:01:08]}  Qh4 {[%clk 0:01:02]} 32. Bc1 {[%clk 0:00:52]}  Ra1 {[%clk 0:00:50]} 33. Qd2 {[%clk 0:00:50]}  Qf6 {[%clk 0:00:42]} 34. Qc2 {[%clk 0:00:34]}  Re7 {[%clk 0:00:32]} 35. Bd2 {[%clk 0:00:29]}  Ra3 {[%clk 0:00:27]} 36. Rd1 {[%clk 0:00:27]}  c6 {[%clk 0:00:21]} 37. dxc6 {[%clk 0:00:26]}  bxc6 {[%clk 0:00:22]} 38. Bc1 {[%clk 0:00:25]}  Ra1 {[%clk 0:00:20]} 39. Rxd4 {[%clk 0:00:24]}  Rxc1 {[%clk 0:00:20]} 40. Qd2 {[%clk 0:00:22]}  Rb1 {[%clk 0:00:13]} 41. Ba2 {[%clk 0:00:14]}  Ra1 {[%clk 0:00:12]} 42. h4 {[%clk 0:00:11]}  Rxa2 {[%clk 0:00:11]} 43. Qxa2 {[%clk 0:00:10]}  Qxd4 {[%clk 0:00:12]} 44. Qa8+ {[%clk 0:00:10]}  Kh7 {[%clk 0:00:12]} 45. e5 {[%clk 0:00:10]}  dxe5 {[%clk 0:00:12]} 46. Qd8 {[%clk 0:00:11]}  Qe4+ {[%clk 0:00:11]} 47. Kh2 {[%clk 0:00:11]}  exf4 {[%clk 0:00:11]} 48. Rg1 {[%clk 0:00:11]}  Nf6 {[%clk 0:00:11]} 49. Qf8 {[%clk 0:00:10]}  Nh5 {[%clk 0:00:11]} 50. f6 {[%clk 0:00:11]}  Qc2+ {[%clk 0:00:05]} 51. Kh3 {[%clk 0:00:06]}  Re3+ {[%clk 0:00:04]} 52. Kg4 {[%clk 0:00:07]}  Qg6# {[%clk 0:00:04]} 0-1


[Site "https://www.chess.com"]